Workbook

Sheet Aperçu
D1: Département fédéral de la défense, de la protection de la population et des sports DDPS Office fédéral de la protection de la population OFPP Laboratoire Spiez
A3: Calcul justificatif simplifié des fixations antichocs
A5: Pour le calcul justificatif des fixations antichocs, il convient de définir les forces qui s'exercent en cas de charge de choc sur les fixations (ancrages, tampons) des éléments montés dans les constructions (forces de fixation).
A7: Les forces s'exerçant sur l'élément dues aux charges de choc sont considérées comme des charges statiques de remplacement, qui agissent au centre d'inertie de l'élément.
A9: Les forces de fixation S doivent en principe être calculées pour toutes les directions spatiales x, y et z, des effets du choc, et ce, dans la direction positive et négative. Pour la vérification de la résistance aux chocs, les forces de fixation maximales Smax sont déterminantes.
A11: Pour le calcul justificatif simplifié, il est nécessaire que l'élément soit rigide et que la charge s'exerce uniformément (équilibrage de charge) sur les fixations (ancrages, tampons).
A13: Pour les six situations représentées (points de fixation), les forces de fixation S nécessaires pour la vérification de la résistance aux chocs peuvent être calculées à l'aide des feuilles de travail à disposition pour le niveau de protection "base" et "3 bars":
A15: Données (masse de l'élément, position du centre d'inertie, nombre de fixations, dimensions), dans les champs jaunes
A16: Résultats (forces de fixation), dans les champs verts
A18: Fixation au sol | B18: Fixation au plafond | C18: Fixation au mur | D18: Fixation sur une console murale | E18: Fixation au sol et au mur | F18: Fixation au plafond et au mur
F21: dash@bbs 2018

Sheet Sol
F1: Département fédéral de la défense, de la protection de la population et des sports DDPS Office fédéral de la protection de la population OFPP Laboratoire Spiez
A2: Fixation de l'élément au sol
A4: Niveau de protection | D4: Base
A7: Élément
A8: Masse | B8: m | C8: [kg] | D8: 125
A9: Nombre de fixations (ancrages, tampons) | B9: n | C9: [-] | D9: 6
A10: Dimensions | B10: bx | C10: [mm] | D10: 800
B11: ex | C11: [mm] | D11: 100
B12: by | C12: [mm] | D12: 1200
B13: ey | C13: [mm] | D13: 150
B14: hz | C14: [mm] | D14: 600
A17: Force de fixation | F17: Calcul justificatif de la charge admissible
A18: En cas de charge de choc dans la direction x | B18: Sx | C18: [kN] | D18: =(D$8*Hilfstabelle!D6/D$9*(1+4*(D$14/D10)^2)^0.5)/1000 -> 5.868410279 | F18: Opter pour des tampons/ancrages homologués par l'OFPP pour les fixations antichocs d'éléments dans les constructions. Charge admissiblet Radm selon la base de données pour composants de la protection civile (ZKDB):
A19: En cas de charge de choc dans la direction y | B19: Sy | C19: [kN] | D19: =(D$8*Hilfstabelle!D6/D$9*(1+4*(D$14/D12)^2)^0.5)/1000 -> 4.603559773
A20: En cas de charge de choc dans la direction z | B20: Sz+ | C20: [kN] | D20: =(D8*(Hilfstabelle!D6-9.81)/D9*(1+2*D11/D10)*(1+2*D13/D12))/1000 -> 4.766927083 | F20: https://www.zkdb.vbs.admin.ch
A21: Force de fixation maximale | B21: Smax | C21: [kN] | D21: =MAX(D18:D20) -> 5.868410279 | F21: Radm ≥ Smax
A24: Calcul justificatif simplifié des fixations antichocs | G24: Date: | H24: 2018-10-03
A25: Apparail, Équipement, Produit de manufacturé, Type, Série | G25: Visa: | H25: dash

Sheet Plafond
F1: Département fédéral de la défense, de la protection de la population et des sports DDPS Office fédéral de la protection de la population OFPP Laboratoire Spiez
A2: Fixation de l'élément au plafond
A4: Niveau de protection | D4: Base
A7: Élément
A8: Masse | B8: m | C8: [kg] | D8: 100
A9: Nombre de fixations (ancrages, tampons) | B9: n | C9: [-] | D9: 6
A10: Dimensions | B10: bx | C10: [mm] | D10: 800
B11: ex | C11: [mm] | D11: 100
B12: by | C12: [mm] | D12: 1200
B13: ey | C13: [mm] | D13: 150
B14: hz | C14: [mm] | D14: 400
A17: Force de fixation | F17: Calcul justificatif de la charge admissible
A18: En cas de charge de choc dans la direction x | B18: Sx | C18: [kN] | D18: =$D$8/$D$9*((Hilfstabelle!D7)^2+(2*Hilfstabelle!D7*$D$14/D10+9.81)^2)^0.5/1000 -> 3.800218784 | F18: Opter pour des tampons/ancrages homologués par l'OFPP pour les fixations antichocs d'éléments dans les constructions. Charge admissiblet Radm selon la base de données pour composants de la protection civile (ZKDB):
A19: En cas de charge de choc dans la direction y | B19: Sy | C19: [kN] | D19: =$D$8/$D$9*((Hilfstabelle!D7)^2+(2*Hilfstabelle!D7*$D$14/D12+9.81)^2)^0.5/1000 -> 3.223384309
A20: En cas de charge de choc dans la direction z | B20: Sz- | C20: [kN] | D20: =D8*(Hilfstabelle!D7+9.81)/D9*(1+2*D11/D10)*(1+2*D13/D12)/1000 -> 4.324479167 | F20: https://www.zkdb.vbs.admin.ch
A21: Force de fixation maximale | B21: Smax | C21: [kN] | D21: =MAX(D18:D20) -> 4.324479167 | F21: Radm ≥ Smax
A24: Calcul justificatif simplifié des fixations antichocs | G24: Date: | H24: 2018-10-03
A25: Apparail, Équipement, Produit de manufacturé, Type, Série | G25: Visa: | H25: dash

Sheet Mur
F1: Département fédéral de la défense, de la protection de la population et des sports DDPS Office fédéral de la protection de la population OFPP Laboratoire Spiez
A2: Fixation de l'élément au mur
A4: Niveau de protection | D4: Base
A7: Élément
A8: Masse | B8: m | C8: [kg] | D8: 100
A9: Nombre de fixations (ancrages, tampons) | B9: n | C9: [-] | D9: 6
A10: Dimensions | B10: bx | C10: [mm] | D10: 800
B11: ex | C11: [mm] | D11: 100
B12: bz | C12: [mm] | D12: 1200
B13: ez | C13: [mm] | D13: 150
B14: hy | C14: [mm] | D14: 500
A17: Force de fixation | F17: Calcul justificatif de la charge admissible
A18: En cas de charge de choc dans la direction x | B18: Sx | C18: [kN] | D18: =(D8/D9*((Hilfstabelle!D8)^2+(9.81^2)+(4*(D14^2))*(Hilfstabelle!D8/D10+9.81/D12)^2)^0.5)/1000 -> 4.279066008 | F18: Opter pour des tampons/ancrages homologués par l'OFPP pour les fixations antichocs d'éléments dans les constructions. Charge admissiblet Radm selon la base de données pour composants de la protection civile (ZKDB):
A19: En cas de charge de choc dans la direction y | B19: Sy | C19: [kN] | D19: =(D8/D9*((9.81^2)+((Hilfstabelle!D8*(1+(2*D11/D10))*(1+(2*D13/D12))+(2*9.81*D14/D12)))^2)^0.5)/1000 -> 4.208437646
A20: En cas de charge de choc dans la direction z | B20: Sz- | C20: [kN] | D20: =(D8*(Hilfstabelle!D8+9.81)/D9*(1+(4*(D14/D12)^2))^0.5)/1000 -> 3.602694614 | F20: https://www.zkdb.vbs.admin.ch
A21: Force de fixation maximale | B21: Smax | C21: [kN] | D21: =MAX(D18:D20) -> 4.279066008 | F21: Radm ≥ Smax
A24: Calcul justificatif simplifié des fixations antichocs | G24: Date: | H24: 2018-10-03
A25: Apparail, Équipement, Produit de manufacturé, Type, Série | G25: Visa: | H25: dash

Sheet Console murale
F1: Département fédéral de la défense, de la protection de la population et des sports DDPS Office fédéral de la protection de la population OFPP Laboratoire Spiez
A2: Fixation de l'élément sur une console murale
A4: Niveau de protection | D4: Base
A7: Élément
A8: Masse | B8: m | C8: [kg] | D8: 65
A9: Nombre de consoles | B9: k | C9: [-] | D9: 2
A10: Nombre de fixations par console | B10: nK | C10: [-] | D10: 3
A11: Dimensions | B11: bx | C11: [mm] | D11: 600
B12: hy | C12: [mm] | D12: 300
B13: hz | C13: [mm] | D13: 250
B14: bz | C14: [mm] | D14: 500
B15: z1 | C15: [mm] | D15: 50
B16: z2 | C16: [mm] | D16: 350
B17: z3 | C17: [mm] | D17: 450
B18: z4 | C18: [mm]
A21: Force de fixation | F21: Calcul justificatif de la charge admissible
A22: En cas de charge de choc dans la direction x | B22: Sx | C22: [kN] | D22: =(D8/D9*(1/(D10^2)*((Hilfstabelle!D9)^2+(9.81^2))+D12^2*(2*Hilfstabelle!D9/(D10*D11)+9.81/SUM('Console murale'!D15:D18))^2)^0.5)/1000 -> 2.476979728 | F22: Opter pour des tampons/ancrages homologués par l'OFPP pour les fixations antichocs d'éléments dans les constructions. Charge admissiblet Radm selon la base de données pour composants de la protection civile (ZKDB):
A23: En cas de charge de choc dans la direction y+ | B23: Sy+ | C23: [kN] | D23: =($D$8/$D$9*((9.81/$D$10)^2+((Hilfstabelle!D9*($D$13+$D$14)+9.81*$D$12)/SUM($D$15:$D$18))^2)^0.5)/1000 -> 4.594454296
A24: En cas de charge de choc dans la direction y- | B24: Sy- | C24: [kN] | D24: =(D8/D9*((9.81/D10)^2+((Hilfstabelle!D9*(D13+D14)-(9.81*D12))/(D10*(D14-((D15+D16+D17+D18)/D10))))^2)^0.5)/1000 -> 5.713213529
A25: En cas de charge de choc dans la direction z+ | B25: Sz+ | C25: [kN] | D25: =(D8/D9*((9.81/D10)^2+((Hilfstabelle!D9-9.81)*D12/(D10*(D14-((D15+D16+D17+D18)/D10))))^2)^0.5)/1000 -> 2.199169374 | F25: https://www.zkdb.vbs.admin.ch
A26: En cas de charge de choc dans la direction z- | B26: Sz- | C26: [kN] | D26: =($D$8/$D$9*((9.81/$D$10)^2+((Hilfstabelle!D9+9.81)*$D$12/SUM($D$15:$D$18))^2)^0.5)/1000 -> 1.907768284
A27: Force de fixation maximale | B27: Smax | C27: [kN] | D27: =MAX(D22:D26) -> 5.713213529 | F27: Radm ≥ Smax
A30: Calcul justificatif simplifié des fixations antichocs | G30: Date: | H30: 2018-10-03
A31: Apparail, Équipement, Produit de manufacturé, Type, Série | G31: Visa: | H31: dash

Sheet Sol-Mur
F1: Département fédéral de la défense, de la protection de la population et des sports DDPS Office fédéral de la protection de la population OFPP Laboratoire Spiez
A2: Fixation de l'élément au sol et au mur
A4: Niveau de protection | D4: Base
A7: Élément
A8: Masse | B8: m | C8: [kg] | D8: 200
A9: Nombre de fixations au sol | B9: nB | C9: [-] | D9: 4
A10: Nombre de fixations au mur | B10: nW | C10: [-] | D10: 2
A11: Dimensions | B11: bx | C11: [mm] | D11: 800
B12: by | C12: [mm] | D12: 600
B13: bz | C13: [mm] | D13: 2000
B14: hy | C14: [mm] | D14: 300
B15: hz | C15: [mm] | D15: 1000
A18: Force de fixation | F18: Calcul justificatif de la charge admissible
A19: En cas de charge de choc dans la direction x | B19: Sx, B | C19: [kN] | D19: =$D$8*Hilfstabelle!D10*((1/($D$10+$D$9))+(2*$D$14/($D$10*$D$11+$D$9*$D$12)))/1000 -> 9.895833333 | F19: Opter pour des tampons/ancrages homologués par l'OFPP pour les fixations antichocs d'éléments dans les constructions. Charge admissiblet Radm selon la base de données pour composants de la protection civile (ZKDB):
A20: En cas de charge de choc dans la direction x | B20: Sx,W | C20: [kN] | D20: =$D$8*Hilfstabelle!D10*((1/($D$10+$D$9))^2+(2*$D$14/($D$10*$D$11+$D$9*$D$12))^2)^0.5/1000 -> 7.007095858
A21: En cas de charge de choc dans la direction y+ | B21: Sy+,B | C21: [kN] | D21: =($D$8*Hilfstabelle!$D$10/$D$9)*(1-($D$15/$D$13))/1000 -> 3.90625
A22: En cas de charge de choc dans la direction y+ | B22: Sy+,W | C22: [kN] | D22: =$D$8*Hilfstabelle!$D$10/$D$10*($D$15/$D$13)/1000 -> 7.8125 | F22: https://www.zkdb.vbs.admin.ch
A23: En cas de charge de choc dans la direction z+ | B23: Sz+,B | C23: [kN] | D23: =($D$8*(Hilfstabelle!$D$10-9.81)/$D$9)*($D$14/$D$12)/1000 -> 3.661
A24: En cas de charge de choc dans la direction z+ | B24: Sz+,W | C24: [kN] | D24: =($D$8*(Hilfstabelle!$D$10-9.81)/$D$10)*(1-($D$14/$D$12))/1000 -> 7.322
A25: Force de fixation maximale | B25: Smax | C25: [kN] | D25: =MAX(D19:D24) -> 9.895833333 | F25: Rzul ≥ Smax
A28: Calcul justificatif simplifié des fixations antichocs | G28: Date: | H28: 2018-10-03
A29: Apparail, Équipement, Produit de manufacturé, Type, Série | G29: Visa: | H29: dash

Sheet Plafond-Mur
F1: Département fédéral de la défense, de la protection de la population et des sports DDPS Office fédéral de la protection de la population OFPP Laboratoire Spiez
A2: Fixation de l'élément au plafond et au mur
A4: Niveau de protection | D4: Base
A7: Élément
A8: Masse | B8: m | C8: [kg] | D8: 150
A9: Nombre de fixations (ancrages, tampons) | B9: n | C9: [-] | D9: 8
A10: Dimensions | B10: bx | C10: [mm] | D10: 1200
B11: by | C11: [mm] | D11: 900
B12: bz | C12: [mm] | D12: 750
B13: hy | C13: [mm] | D13: 450
B14: hz | C14: [mm] | D14: 350
A17: Force de fixation | F17: Calcul justificatif de la charge admissible
A18: En cas de charge de choc dans la direction x | B18: Sx,D | C18: [kN] | D18: =$D$8/$D$9*((Hilfstabelle!$D$11)^2+4*((Hilfstabelle!$D$11*$D$13/$D$10)+9.81)^2)^0.5/1000 -> 3.893971658 | F18: Opter pour des tampons/ancrages homologués par l'OFPP pour les fixations antichocs d'éléments dans les constructions. Charge admissiblet Radm selon la base de données pour composants de la protection civile (ZKDB):
A19: En cas de charge de choc dans la direction x | B19: Sx,W | C19: [kN] | D19: =$D$8/$D$9*((Hilfstabelle!$D$11)^2+(9.81)^2+4*(Hilfstabelle!$D$11*$D$13/$D$10)^2)^0.5/1000 -> 3.666725798
A20: En cas de charge de choc dans la direction y+ | B20: Sy+,D | C20: [kN] | D20: =2*D8/D9*((Hilfstabelle!D11)^2+(9.81*D13/D11)^2)^0.5/1000 -> 5.862261372
A21: En cas de charge de choc dans la direction y+ | B21: Sy+,W | C21: [kN] | D21: =2*D8/D9*((Hilfstabelle!D11*D14/D12)^2+(9.81)^2)^0.5/1000 -> 2.759010449 | F21: https://www.zkdb.vbs.admin.ch
A22: En cas de charge de choc dans la direction z- | B22: Sz-,D | C22: [kN] | D22: =2*$D$8/$D$9*(Hilfstabelle!$D$11+9.81)*D13/D11/1000 -> 3.113625
A23: En cas de charge de choc dans la direction z- | B23: Sz-,W | C23: [kN] | D23: =2*$D$8/$D$9*(Hilfstabelle!$D$11+9.81)/1000 -> 6.22725
A24: Force de fixation maximale | B24: Smax | C24: [kN] | D24: =MAX(D18:D23) -> 6.22725 | F24: Rzul ≥ Smax
A27: Calcul justificatif simplifié des fixations antichocs | G27: Date: | H27: 2018-10-03
A28: Apparail, Équipement, Produit de manufacturé, Type, Série | G28: Visa: | H28: dash

Sheet Hilfstabelle (hidden)
A1: Schutzgrade
A2: Base
A3: 3 bar
A5: Eingesetzter a x DLF Wert
A6: a x DLF | B6: Boden | C6: [m/s2] | D6: =IF(Sol!D4="Base",156.25,IF(Sol!D4="3 bar",256)) -> 156.25
A7: a x DLF | B7: Decke | C7: [m/s2] | D7: =IF(Plafond!D4="Base",156.25,IF(Plafond!D4="3 bar",256)) -> 156.25
A8: a x DLF | B8: Wand | C8: [m/s2] | D8: =IF(Mur!D4="Base",156.25,IF(Mur!D4="3 bar",256)) -> 156.25
A9: a x DLF | B9: Wandkonsole | C9: [m/s2] | D9: =IF('Console murale'!D4="Base",156.25,IF('Console murale'!D4="3 bar",256)) -> 156.25
A10: a x DLF | B10: Boden-Wand | C10: [m/s2] | D10: =IF('Sol-Mur'!D4="Base",156.25,IF('Sol-Mur'!D4="3 bar",256)) -> 156.25
A11: a x DLF | B11: Decke-Wand | C11: [m/s2] | D11: =IF('Plafond-Mur'!D4="Base",156.25,IF('Plafond-Mur'!D4="3 bar",256)) -> 156.25
